[Event "Torneo Nuevo Centro. Jornada 10"]
[Site "Chess.com"]
[Date "2020.08.21"]
[Round "3"]
[White "Camison Zornoza, Cesar"]
[Black "Kovacevic, Slobodan"]
[Result "0-1"]
[WhiteElo "1791"]
[BlackElo "2309"]
[TimeControl "180+2"]
[EndTime "11:02:28 PDT"]
[Termination "Victoria de nikko110 por jaque mate"]

1. e4 {[%clk 0:03:01.9]} 1... c5 {[%clk 0:02:57.2]} 2. d4 {[%clk 0:03:02.3]}
2... cxd4 {[%clk 0:02:56.9]} 3. c3 {[%clk 0:03:03.7]} 3... d3 {[%clk 0:02:57.4]}
4. Bxd3 {[%clk 0:03:04.2]} 4... e6 {[%clk 0:02:57.9]} 5. c4 {[%clk 0:03:05.7]}
5... a6 {[%clk 0:02:56.7]} 6. Nc3 {[%clk 0:03:06.7]} 6... Qc7 {[%clk 0:02:56.9]}
7. Nf3 {[%clk 0:03:05.6]} 7... d6 {[%clk 0:02:56.5]} 8. O-O {[%clk 0:03:05.6]}
8... Nf6 {[%clk 0:02:56.5]} 9. h3 {[%clk 0:03:05.3]} 9... Be7 {[%clk 0:02:55.3]}
10. Bf4 {[%clk 0:03:06]} 10... Nbd7 {[%clk 0:02:54.3]} 11. Qe2 {[%clk
0:03:06.5]} 11... Ne5 {[%clk 0:02:53.6]} 12. Nxe5 {[%clk 0:02:53]} 12... dxe5
{[%clk 0:02:52.9]} 13. Be3 {[%clk 0:02:54.2]} 13... b6 {[%clk 0:02:53.1]} 14.
Rac1 {[%clk 0:02:53.2]} 14... O-O {[%clk 0:02:52.1]} 15. a3 {[%clk 0:02:54]}
15... a5 {[%clk 0:02:37.5]} 16. Kh1 {[%clk 0:02:53.1]} 16... Bd7 {[%clk
0:02:34.9]} 17. f4 {[%clk 0:02:51.2]} 17... Bd6 {[%clk 0:02:26.2]} 18. Nb5
{[%clk 0:02:46.2]} 18... Bxb5 {[%clk 0:02:23.7]} 19. cxb5 {[%clk 0:02:46.7]}
19... Qd8 {[%clk 0:02:17.5]} 20. f5 {[%clk 0:02:27.2]} 20... exf5 {[%clk
0:02:11]} 21. Rxf5 {[%clk 0:02:27.1]} 21... Nd7 {[%clk 0:02:04.6]} 22. Rc6
{[%clk 0:02:17.6]} 22... Nc5 {[%clk 0:01:58.8]} 23. Bb1 {[%clk 0:02:13.4]} 23...
Rc8 {[%clk 0:01:51.9]} 24. Rxc8 {[%clk 0:02:12.2]} 24... Qxc8 {[%clk 0:01:51.1]}
25. Qg4 {[%clk 0:02:05.1]} 25... g6 {[%clk 0:01:45.7]} 26. Rxf7 {[%clk
0:01:41.3]} 26... Qxg4 {[%clk 0:01:40.8]} 27. Rxf8+ {[%clk 0:01:41.2]} 27...
Kxf8 {[%clk 0:01:38.9]} 28. hxg4 {[%clk 0:01:42.3]} 28... Kf7 {[%clk 0:01:34.3]}
29. Kg1 {[%clk 0:01:41]} 29... Be7 {[%clk 0:01:32.2]} 30. Kf2 {[%clk 0:01:40.7]}
30... Ke6 {[%clk 0:01:30.3]} 31. Kf3 {[%clk 0:01:40.1]} 31... Kd6 {[%clk
0:01:27.1]} 32. Bc2 {[%clk 0:01:34]} 32... Bd8 {[%clk 0:01:24.7]} 33. g5 {[%clk
0:01:34.1]} 33... Ne6 {[%clk 0:01:23.1]} 34. Bb3 {[%clk 0:01:29.9]} 34... Nxg5+
{[%clk 0:01:20.9]} 35. Bxg5 {[%clk 0:01:29.9]} 35... Bxg5 {[%clk 0:01:19.6]} 36.
Bg8 {[%clk 0:01:30.5]} 36... h6 {[%clk 0:01:17.8]} 37. Bh7 {[%clk 0:01:30.1]}
37... Bc1 {[%clk 0:01:16.9]} 38. a4 {[%clk 0:01:31.3]} 38... g5 {[%clk
0:01:12.6]} 39. Bg8 {[%clk 0:01:29.1]} 39... Bxb2 {[%clk 0:01:11]} 40. Ke2
{[%clk 0:01:25.3]} 40... Bc1 {[%clk 0:01:09.9]} 41. Kd3 {[%clk 0:01:23.7]} 41...
Kc5 {[%clk 0:01:08.6]} 42. Bb3 {[%clk 0:01:23.5]} 42... h5 {[%clk 0:01:05.3]}
43. Bd1 {[%clk 0:01:24.4]} 43... h4 {[%clk 0:01:00.8]} 44. Kc3 {[%clk 0:01:20]}
44... Be3 {[%clk 0:00:58.4]} 45. Bf3 {[%clk 0:01:14.2]} 45... Bd4+ {[%clk
0:00:55]} 46. Kb3 {[%clk 0:01:14.8]} 46... Bf2 {[%clk 0:00:52.3]} 47. Kc3 {[%clk
0:01:08.5]} 47... Be1+ {[%clk 0:00:49.5]} 48. Kd3 {[%clk 0:01:08.3]} 48... Kb4
{[%clk 0:00:47.4]} 49. Bd1 {[%clk 0:01:09]} 49... g4 {[%clk 0:00:44.3]} 50. Ke2
{[%clk 0:01:05.5]} 50... Bg3 {[%clk 0:00:41.8]} 51. Kf1 {[%clk 0:01:03]} 51...
h3 {[%clk 0:00:41.2]} 52. gxh3 {[%clk 0:01:01]} 52... gxh3 {[%clk 0:00:40.6]}
53. Kg1 {[%clk 0:00:57.9]} 53... Kc3 {[%clk 0:00:38.9]} 54. Bg4 {[%clk
0:00:53.5]} 54... h2+ {[%clk 0:00:34.4]} 55. Kg2 {[%clk 0:00:53.4]} 55... Bf4
{[%clk 0:00:33.1]} 56. Bd1 {[%clk 0:00:50.9]} 56... Kd3 {[%clk 0:00:29.1]} 57.
Bf3 {[%clk 0:00:49.7]} 57... Ke3 {[%clk 0:00:28.5]} 58. Bh5 {[%clk 0:00:48]}
58... Kxe4 {[%clk 0:00:28]} 59. Be8 {[%clk 0:00:49]} 59... Ke3 {[%clk
0:00:27.2]} 60. Bc6 {[%clk 0:00:49.4]} 60... e4 {[%clk 0:00:26.5]} 61. Bd5
{[%clk 0:00:45.9]} 61... Kd3 {[%clk 0:00:26.4]} 62. Bc6 {[%clk 0:00:47.1]} 62...
e3 {[%clk 0:00:25.7]} 63. Kf1 {[%clk 0:00:42.9]} 63... e2+ {[%clk 0:00:23.6]}
64. Kf2 {[%clk 0:00:36.9]} 64... Kd2 {[%clk 0:00:23]} 65. Kf3 {[%clk 0:00:23.7]}
65... Bd6 {[%clk 0:00:21.9]} 66. Kg4 {[%clk 0:00:21.4]} 66... e1=Q {[%clk
0:00:20]} 67. Bf3 {[%clk 0:00:18.8]} 67... h1=Q {[%clk 0:00:17.8]} 68. Bxh1
{[%clk 0:00:17.6]} 68... Qxh1 {[%clk 0:00:17.7]} 69. Kf5 {[%clk 0:00:18.9]}
69... Qd5+ {[%clk 0:00:17.1]} 70. Kg4 {[%clk 0:00:19.3]} 70... Qe4+ {[%clk
0:00:15.2]} 71. Kg5 {[%clk 0:00:19.9]} 71... Ke3 {[%clk 0:00:15.1]} 72. Kf6
{[%clk 0:00:20]} 72... Kf4 {[%clk 0:00:15.4]} 73. Kf7 {[%clk 0:00:19.9]} 73...
Kf5 {[%clk 0:00:15.7]} 74. Kg8 {[%clk 0:00:20.1]} 74... Qe7 {[%clk 0:00:12.5]}
75. Kh8 {[%clk 0:00:18.8]} 75... Be5+ {[%clk 0:00:12.7]} 76. Kg8 {[%clk
0:00:19.3]} 76... Qg7# {[%clk 0:00:12.9]} 0

[Event "Torneo Nuevo Centro. Jornada 10"]
[Site "Chess.com"]
[Date "2020.08.21"]
[Round "3"]
[White "De Nacimiento Montano, Antonio"]
[Black "Nadal Fajardo, Ricard"]
[Result "0-1"]
[WhiteElo "1853"]
[BlackElo "2226"]
[TimeControl "180+2"]
[EndTime "11:02:53 PDT"]
[Termination "Victoria de gomokuniano por tiempo"]

1. e4 {[%clk 0:03:01.9]} 1... c6 {[%clk 0:03:00.6]} 2. d4 {[%clk 0:03:02.1]}
2... d5 {[%clk 0:03:02.4]} 3. exd5 {[%clk 0:03:03.1]} 3... cxd5 {[%clk
0:03:04.3]} 4. c4 {[%clk 0:03:02.4]} 4... Nf6 {[%clk 0:03:06.2]} 5. Nf3 {[%clk
0:03:01.8]} 5... e6 {[%clk 0:03:07.4]} 6. Bd3 {[%clk 0:03:00.8]} 6... dxc4
{[%clk 0:03:04.7]} 7. Bxc4 {[%clk 0:03:01.9]} 7... Be7 {[%clk 0:03:06.3]} 8. O-O
{[%clk 0:03:02.3]} 8... O-O {[%clk 0:03:07.8]} 9. Nc3 {[%clk 0:03:03.6]} 9... a6
{[%clk 0:03:03.9]} 10. a3 {[%clk 0:03:04.5]} 10... b5 {[%clk 0:03:04.5]} 11. Ba2
{[%clk 0:03:05.6]} 11... Bb7 {[%clk 0:03:05.8]} 12. Bg5 {[%clk 0:02:59.1]} 12...
Nc6 {[%clk 0:02:59.6]} 13. Qd3 {[%clk 0:02:54.4]} 13... Rc8 {[%clk 0:02:43.5]}
14. Rad1 {[%clk 0:02:53.3]} 14... Na5 {[%clk 0:02:38.1]} 15. Bb1 {[%clk
0:02:46.5]} 15... g6 {[%clk 0:02:37.5]} 16. Rfe1 {[%clk 0:02:23.5]} 16... Nc4
{[%clk 0:02:37.3]} 17. Re2 {[%clk 0:02:22.4]} 17... Nd5 {[%clk 0:02:24.8]} 18.
Bh6 {[%clk 0:02:15]} 18... Nxc3 {[%clk 0:02:14.6]} 19. bxc3 {[%clk 0:01:56]}
19... Re8 {[%clk 0:02:14.5]} 20. a4 {[%clk 0:01:43.1]} 20... bxa4 {[%clk
0:02:10.8]} 21. Ne5 {[%clk 0:01:21.2]} 21... Nxe5 {[%clk 0:02:00.3]} 22. Rxe5
{[%clk 0:01:23.1]} 22... Bd5 {[%clk 0:01:50.2]} 23. Qd2 {[%clk 0:00:39.4]} 23...
Qc7 {[%clk 0:01:28.8]} 24. Rc1 {[%clk 0:00:20.3]} 24... Bd6 {[%clk 0:01:23.3]}
25. Re2 {[%clk 0:00:21.3]} 25... Bxh2+ {[%clk 0:01:22.6]} 26. Kh1 {[%clk
0:00:22.7]} 26... Bd6 {[%clk 0:01:12.9]} 27. Ba2 {[%clk 0:00:20.7]} 27... Bb3
{[%clk 0:00:34.3]} 28. c4 {[%clk 0:00:16.6]} 28... Qe7 {[%clk 0:00:30.8]} 29. g3
{[%clk 0:00:13.9]} 29... Qb7+ {[%clk 0:00:26.3]} 30. Kg1 {[%clk 0:00:14.5]}
30... Qf3 {[%clk 0:00:18.2]} 31. Bxb3 {[%clk 0:00:12.3]} 31... axb3 {[%clk
0:00:18.7]} 32. Re3 {[%clk 0:00:12.7]} 32... Qb7 {[%clk 0:00:16.1]} 33. Qc3
{[%clk 0:00:11.7]} 33... Bf8 {[%clk 0:00:12.7]} 34. Bxf8 {[%clk 0:00:11.9]}
34... Rxf8 {[%clk 0:00:14.1]} 35. Qxb3 {[%clk 0:00:13.5]} 35... Qxb3 {[%clk
0:00:09.8]} 36. Rxb3 {[%clk 0:00:15.4]} 36... Rfd8 {[%clk 0:00:11.4]} 37. Rd3
{[%clk 0:00:10.1]} 37... Rd6 {[%clk 0:00:11.4]} 38. c5 {[%clk 0:00:09.5]} 38...
Rd5 {[%clk 0:00:12.3]} 39. c6 {[%clk 0:00:08.8]} 39... Rc7 {[%clk 0:00:12.9]}
40. Kf1 {[%clk 0:00:05.2]} 40... Rd6 {[%clk 0:00:13.9]} 41. Ra3 {[%clk
0:00:03.1]} 41... Rdxc6 {[%clk 0:00:14.6]} 42. Rxc6 {[%clk 0:00:04.9]} 42...
Rxc6 {[%clk 0:00:16.5]} 43. Ra4 {[%clk 0:00:06.8]} 43... Kf8 {[%clk 0:00:17]}
44. Ke2 {[%clk 0:00:08.3]} 44... Ke7 {[%clk 0:00:17.8]} 45. Ke3 {[%clk
0:00:09.9]} 45... Kf6 {[%clk 0:00:16.4]} 46. f4 {[%clk 0:00:10.6]} 46... h6
{[%clk 0:00:16.7]} 47. g4 {[%clk 0:00:12]} 47... g5 {[%clk 0:00:17.5]} 48. Ke4
{[%clk 0:00:12]} 48... Ke7 {[%clk 0:00:15.8]} 49. f5 {[%clk 0:00:11.7]} 49...
Kf6 {[%clk 0:00:11.4]} 50. Ra5 {[%clk 0:00:11]} 50... Rb6 {[%clk 0:00:10.3]} 51.
fxe6 {[%clk 0:00:11.4]} 51... fxe6 {[%clk 0:00:12.2]} 52. Ra4 {[%clk 0:00:08.3]}
52... Kg6 {[%clk 0:00:12.1]} 53. Ke5 {[%clk 0:00:08.5]} 53... h5 {[%clk
0:00:12]} 54. gxh5+ {[%clk 0:00:08]} 54... Kxh5 {[%clk 0:00:13.9]} 55. Ra1
{[%clk 0:00:07.7]} 55... g4 {[%clk 0:00:14.6]} 56. Kf4 {[%clk 0:00:07.6]} 56...
Rb4 {[%clk 0:00:12.5]} 57. Rh1+ {[%clk 0:00:07.5]} 57... Kg6 {[%clk 0:00:13.9]}
58. Ke5 {[%clk 0:00:08.9]} 58... Kg5 {[%clk 0:00:14.1]} 59. Ra1 {[%clk 0:00:06]}
59... Rb6 {[%clk 0:00:12.1]} 60. Rg1 {[%clk 0:00:05.6]} 60... a5 {[%clk
0:00:12.6]} 61. Ra1 {[%clk 0:00:03.6]} 61... g3 {[%clk 0:00:10.4]} 62. Rxa5
{[%clk 0:00:03.4]} 62... Kg4 {[%clk 0:00:11]} 63. Ra8 {[%clk 0:00:04.3]} 63...
Kf3 {[%clk 0:00:11.8]} 64. Rf8+ {[%clk 0:00:05.1]} 64... Ke2 {[%clk 0:00:12.1]}
65. Rg8 {[%clk 0:00:05.7]} 65... Kf2 {[%clk 0:00:13.3]} 66. Rf8+ {[%clk
0:00:07.1]} 66... Kg1 {[%clk 0:00:14.5]} 67. Kf4 {[%clk 0:00:06.7]} 67... g2
{[%clk 0:00:14.1]} 68. Rg8 {[%clk 0:00:07.6]} 68... Kf2 {[%clk 0:00:14.3]} 69.
Ke5 {[%clk 0:00:02.1]} 69... g1=Q {[%clk 0:00:15.1]} 70. Rxg1 {[%clk 0:00:03.8]}
70... Kxg1 {[%clk 0:00:17]} 71. d5 {[%clk 0:00:05.5]} 71... exd5 {[%clk
0:00:18]} 72. Kxd5 {[%clk 0:00:07.4]} 72... Kf2 {[%clk 0:00:19.1]} 73. Kc5
{[%clk 0:00:09.3]} 73... Rg6 {[%clk 0:00:19.7]} 74. Kd5 {[%clk 0:00:11.2]} 74...
Ke3 {[%clk 0:00:20.8]} 75. Ke5 {[%clk 0:00:13.1]} 75... Rg5+ {[%clk 0:00:21.9]}
0

[Event "Torneo Nuevo Centro. Jornada 10"]
[Site "Chess.com"]
[Date "2020.08.21"]
[Round "3"]
[White "Serarols Mabras, Bernat"]
[Black "Cantero Navarro, Antonio"]
[Result "1/2-1/2"]
[WhiteElo "2358"]
[BlackElo "1926"]
[TimeControl "180+2"]
[EndTime "11:03:46 PDT"]
[Termination "Tablas por rey ahogado"]

1. d4 {[%clk 0:02:58.7]} 1... d5 {[%clk 0:02:59.9]} 2. c4 {[%clk 0:02:59.8]}
2... e6 {[%clk 0:03:00.5]} 3. Nf3 {[%clk 0:03:01]} 3... c6 {[%clk 0:02:59.6]} 4.
e3 {[%clk 0:03:00.8]} 4... Nf6 {[%clk 0:02:59.4]} 5. Nc3 {[%clk 0:03:01.3]} 5...
Nbd7 {[%clk 0:02:59.7]} 6. Qc2 {[%clk 0:03:02.5]} 6... Bd6 {[%clk 0:02:59.9]} 7.
Be2 {[%clk 0:03:03.8]} 7... dxc4 {[%clk 0:03:00.2]} 8. Bxc4 {[%clk 0:03:04.1]}
8... e5 {[%clk 0:02:55]} 9. O-O {[%clk 0:03:02.6]} 9... O-O {[%clk 0:02:54.8]}
10. h3 {[%clk 0:03:00.6]} 10... Qe7 {[%clk 0:02:46.1]} 11. Rd1 {[%clk
0:02:53.9]} 11... e4 {[%clk 0:02:43.8]} 12. Ng5 {[%clk 0:02:53.6]} 12... Nb6
{[%clk 0:02:38.5]} 13. Bb3 {[%clk 0:02:31.5]} 13... Bf5 {[%clk 0:02:38.5]} 14.
f3 {[%clk 0:01:58.9]} 14... Rae8 {[%clk 0:02:22.3]} 15. Ncxe4 {[%clk 0:01:54.4]}
15... Nxe4 {[%clk 0:02:22.3]} 16. Nxe4 {[%clk 0:01:52.2]} 16... Bxe4 {[%clk
0:02:21.9]} 17. fxe4 {[%clk 0:01:50.7]} 17... Qxe4 {[%clk 0:02:16.2]} 18. Qxe4
{[%clk 0:01:52.6]} 18... Rxe4 {[%clk 0:02:16.6]} 19. Bc2 {[%clk 0:01:54.1]}
19... Re7 {[%clk 0:02:14.3]} 20. e4 {[%clk 0:01:54.6]} 20... Rd8 {[%clk
0:02:01.7]} 21. e5 {[%clk 0:01:40.5]} 21... Bc7 {[%clk 0:01:57.4]} 22. Bg5
{[%clk 0:01:40.7]} 22... Red7 {[%clk 0:01:11.5]} 23. Bxd8 {[%clk 0:01:39.7]}
23... Rxd8 {[%clk 0:01:13.4]} 24. Bb3 {[%clk 0:01:40.4]} 24... Nd5 {[%clk
0:01:12.4]} 25. Bxd5 {[%clk 0:01:31.6]} 25... Rxd5 {[%clk 0:01:12.3]} 26. Rac1
{[%clk 0:01:28.8]} 26... Bb6 {[%clk 0:01:09]} 27. Kf1 {[%clk 0:01:26.4]} 27...
Kf8 {[%clk 0:01:03.2]} 28. Rc4 {[%clk 0:01:20.7]} 28... c5 {[%clk 0:00:57.5]}
29. Ke2 {[%clk 0:00:47.1]} 29... cxd4 {[%clk 0:00:58.1]} 30. Rc8+ {[%clk
0:00:42.7]} 30... Ke7 {[%clk 0:00:58.6]} 31. Rb8 {[%clk 0:00:44.6]} 31... Rxe5+
{[%clk 0:00:40.9]} 32. Kd3 {[%clk 0:00:45.6]} 32... Re3+ {[%clk 0:00:38.2]} 33.
Kc4 {[%clk 0:00:46.8]} 33... Re2 {[%clk 0:00:31.9]} 34. Rxb7+ {[%clk 0:00:47.6]}
34... Ke6 {[%clk 0:00:32.3]} 35. a4 {[%clk 0:00:41.3]} 35... Rxb2 {[%clk
0:00:21.4]} 36. Re1+ {[%clk 0:00:36.1]} 36... Kf6 {[%clk 0:00:20.5]} 37. Rf1+
{[%clk 0:00:36.5]} 37... Ke6 {[%clk 0:00:17.6]} 38. Rfxf7 {[%clk 0:00:37.7]}
38... Rxg2 {[%clk 0:00:17.8]} 39. Rxg7 {[%clk 0:00:37.2]} 39... Rc2+ {[%clk
0:00:16.1]} 40. Kb5 {[%clk 0:00:37.5]} 40... d3 {[%clk 0:00:15.7]} 41. Rbd7
{[%clk 0:00:36.7]} 41... Rc5+ {[%clk 0:00:13.1]} 42. Kb4 {[%clk 0:00:36.7]}
42... d2 {[%clk 0:00:11.8]} 43. Rxd2 {[%clk 0:00:35.1]} 43... Rh5 {[%clk
0:00:11.8]} 44. Rdd7 {[%clk 0:00:32.1]} 44... Rxh3 {[%clk 0:00:10.9]} 45. Rxh7
{[%clk 0:00:32.4]} 45... Rg3 {[%clk 0:00:08.4]} 46. Rhe7+ {[%clk 0:00:31.8]}
46... Kf6 {[%clk 0:00:08.6]} 47. Kb5 {[%clk 0:00:31.3]} 47... Rg5+ {[%clk
0:00:08.2]} 48. Kc6 {[%clk 0:00:31.4]} 48... Ra5 {[%clk 0:00:08.4]} 49. Re4
{[%clk 0:00:31.7]} 49... Kf5 {[%clk 0:00:08.8]} 50. Rc4 {[%clk 0:00:29.6]} 50...
Kf6 {[%clk 0:00:09]} 51. Rb7 {[%clk 0:00:27.9]} 51... Ke6 {[%clk 0:00:09.4]} 52.
Re4+ {[%clk 0:00:26.3]} 52... Kf6 {[%clk 0:00:09.6]} 53. Rxb6 {[%clk 0:00:24.8]}
53... axb6 {[%clk 0:00:09.5]} 54. Kxb6 {[%clk 0:00:26.7]} 54... Rh5 {[%clk
0:00:09.6]} 55. a5 {[%clk 0:00:28.1]} 55... Rh1 {[%clk 0:00:09.4]} 56. a6 {[%clk
0:00:28.4]} 56... Rb1+ {[%clk 0:00:09.8]} 57. Kc7 {[%clk 0:00:29.6]} 57... Rc1+
{[%clk 0:00:10]} 58. Kb8 {[%clk 0:00:30.5]} 58... Rb1+ {[%clk 0:00:10.9]} 59.
Ka8 {[%clk 0:00:31.7]} 59... Kf7 {[%clk 0:00:11.3]} 60. Re2 {[%clk 0:00:26.1]}
60... Rb6 {[%clk 0:00:10.5]} 61. a7 {[%clk 0:00:25.4]} 61... Rb3 {[%clk
0:00:10.3]} 62. Rc2 {[%clk 0:00:23.5]} 62... Ke7 {[%clk 0:00:10.7]} 63. Rc7+
{[%clk 0:00:23.5]} 63... Kd8 {[%clk 0:00:11]} 64. Rb7 {[%clk 0:00:21.5]} 64...
Rc3 {[%clk 0:00:11.7]} 65. Rb8+ {[%clk 0:00:21.7]} 65... Kc7 {[%clk 0:00:12.3]}
66. Rh8 {[%clk 0:00:21.5]} 66... Ra3 {[%clk 0:00:12.8]} 67. Rh7+ {[%clk
0:00:22.7]} 67... Kc8 {[%clk 0:00:13.7]} 68. Rh4 {[%clk 0:00:22.2]} 68... Kc7
{[%clk 0:00:14.5]} 69. Rh1 {[%clk 0:00:20.1]} 69... Rc3 {[%clk 0:00:14.3]} 70.
Rh7+ {[%clk 0:00:20.2]} 70... Kc8 {[%clk 0:00:15.2]} 71. Rb7 {[%clk 0:00:20.7]}
71... Rc4 {[%clk 0:00:15.4]} 72. Rb8+ {[%clk 0:00:20.3]} 72... Kc7 {[%clk
0:00:15.6]} 73. Rh8 {[%clk 0:00:22]} 73... Rc3 {[%clk 0:00:15.8]} 74. Rh4 {[%clk
0:00:22.5]} 74... Kc8 {[%clk 0:00:16.4]} 75. Rh7 {[%clk 0:00:23.2]} 75... Rc2
{[%clk 0:00:16.8]} 76. Rg7 {[%clk 0:00:22.9]} 76... Rc1 {[%clk 0:00:17.1]} 77.
Rg8+ {[%clk 0:00:23]} 77... Kc7 {[%clk 0:00:17.9]} 78. Rb8 {[%clk 0:00:24.9]}
78... Rc2 {[%clk 0:00:18]} 79. Rb4 {[%clk 0:00:25.7]} 79... Rc3 {[%clk
0:00:18.6]} 80. Rb2 {[%clk 0:00:26.7]} 80... Kc8 {[%clk 0:00:19.4]} 81. Rb7
{[%clk 0:00:27.3]} 81... Rc4 {[%clk 0:00:20.1]} 82. Rg7 {[%clk 0:00:27.9]} 82...
Rc5 {[%clk 0:00:20.7]} 83. Rh7 {[%clk 0:00:28.5]} 83... Rc4 {[%clk 0:00:21.1]}
84. Rh6 {[%clk 0:00:29.4]} 84... Kc7 {[%clk 0:00:19.9]} 85. Rh2 {[%clk
0:00:27.4]} 85... Kc8 {[%clk 0:00:20.5]} 86. Rb2 {[%clk 0:00:25.2]} 86... Kc7
{[%clk 0:00:21.6]} 87. Rb1 {[%clk 0:00:25.3]} 87... Kc8 {[%clk 0:00:22.7]} 88.
Rb7 {[%clk 0:00:25.9]} 88... Rc5 {[%clk 0:00:23.1]} 89. Rg7 {[%clk 0:00:26.4]}
89... Rc4 {[%clk 0:00:23.4]} 90. Rg5 {[%clk 0:00:27.1]} 90... Kc7 {[%clk
0:00:23.6]} 91. Rg7+ {[%clk 0:00:27]} 91... Kc8 {[%clk 0:00:23.7]} 92. Rg2
{[%clk 0:00:28.5]} 92... Kc7 {[%clk 0:00:24.5]} 93. Rg6 {[%clk 0:00:29.5]} 93...
Kc8 {[%clk 0:00:25.2]} 94. Rg1 {[%clk 0:00:28.6]} 94... Kc7 {[%clk 0:00:26.2]}
95. Rg8 {[%clk 0:00:29.9]} 95... Rc5 {[%clk 0:00:26.4]} 96. Rg7+ {[%clk
0:00:31.3]} 96... Kc8 {[%clk 0:00:27]} 97. Rg6 {[%clk 0:00:33.2]} 97... Kc7
{[%clk 0:00:27.5]} 98. Rg5 {[%clk 0:00:35.1]} 98... Kc8 {[%clk 0:00:28.4]} 99.
Rd5 {[%clk 0:00:36]} 99... Rxd5 {[%clk 0:00:24.1]} 1/2-1

[Event "Torneo Nuevo Centro. Jornada 10"]
[Site "Chess.com"]
[Date "2020.08.21"]
[Round "4"]
[White "Iravedra Ainkov, Francisco"]
[Black "Miranda Calvo, Max Rodrigo"]
[Result "1-0"]
[WhiteElo "1810"]
[BlackElo "1370"]
[TimeControl "180+2"]
[EndTime "11:06:17 PDT"]
[Termination "Victoria de frankeIpro por abandono"]

1. e4 {[%clk 0:03:01.9]} 1... e5 {[%clk 0:02:59.3]} 2. Qh5 {[%clk 0:02:48.2]}
2... Nc6 {[%clk 0:02:55.9]} 3. Bc4 {[%clk 0:02:48.1]} 3... g6 {[%clk 0:02:53.6]}
4. Qf3 {[%clk 0:02:47.9]} 4... Nf6 {[%clk 0:02:52.2]} 5. Nc3 {[%clk 0:02:47.3]}
5... d6 {[%clk 0:02:48.4]} 6. h3 {[%clk 0:02:47.3]} 6... Bg7 {[%clk 0:02:46.8]}
7. Nge2 {[%clk 0:02:46.2]} 7... O-O {[%clk 0:02:46.6]} 8. d3 {[%clk 0:02:46.8]}
8... Qe7 {[%clk 0:02:36.5]} 9. Bg5 {[%clk 0:02:40.3]} 9... h6 {[%clk 0:02:30.6]}
10. Nd5 {[%clk 0:02:33.8]} 10... Qe6 {[%clk 0:02:21.4]} 11. Nxf6+ {[%clk
0:02:25.8]} 1

[Event "Torneo Nuevo Centro. Jornada 10"]
[Site "Chess.com"]
[Date "2020.08.21"]
[Round "4"]
[White "Castellano López, Javier"]
[Black "Conejero Martínez, Víctor"]
[Result "1-0"]
[WhiteElo "1904"]
[BlackElo "1415"]
[TimeControl "180+2"]
[EndTime "11:06:32 PDT"]
[Termination "Victoria de its_xavi_official por jaque mate"]

1. e4 {[%clk 0:03:01.9]} 1... c5 {[%clk 0:03:00.2]} 2. Nc3 {[%clk 0:03:01.1]}
2... Nc6 {[%clk 0:03:00.9]} 3. g3 {[%clk 0:03:02.3]} 3... d6 {[%clk 0:03:01.3]}
4. Bg2 {[%clk 0:03:03.7]} 4... Nf6 {[%clk 0:03:01.7]} 5. Nge2 {[%clk 0:03:05.2]}
5... g6 {[%clk 0:03:01.9]} 6. O-O {[%clk 0:03:06.1]} 6... Bg7 {[%clk 0:03:02.4]}
7. d3 {[%clk 0:03:07.5]} 7... O-O {[%clk 0:03:02.2]} 8. Be3 {[%clk 0:03:08.8]}
8... Be6 {[%clk 0:02:59.9]} 9. h3 {[%clk 0:03:08.5]} 9... Qd7 {[%clk 0:03:00]}
10. Kh2 {[%clk 0:03:09.3]} 10... h6 {[%clk 0:02:41]} 11. Qd2 {[%clk 0:03:09.5]}
11... g5 {[%clk 0:02:39.5]} 12. f4 {[%clk 0:03:08.2]} 12... g4 {[%clk 0:02:33]}
13. f5 {[%clk 0:03:05.9]} 13... gxh3 {[%clk 0:02:23.6]} 14. Bxh3 {[%clk
0:03:02]} 14... h5 {[%clk 0:02:09.2]} 15. fxe6 {[%clk 0:03:02.4]} 15... fxe6
{[%clk 0:02:10.2]} 16. Bh6 {[%clk 0:03:03]} 16... Ng4+ {[%clk 0:02:09.5]} 17.
Bxg4 {[%clk 0:03:03.4]} 17... hxg4 {[%clk 0:02:09.9]} 18. Qg5 {[%clk 0:03:04.4]}
18... Rf7 {[%clk 0:02:04.2]} 19. Rxf7 {[%clk 0:03:04.4]} 19... Kxf7 {[%clk
0:02:04.6]} 20. Qxg7+ {[%clk 0:03:05.3]} 20... Ke8 {[%clk 0:02:02]} 21. Qf8#
{[%clk 0:03:01.4]} 1

[Event "Torneo Nuevo Centro. Jornada 10"]
[Site "Chess.com"]
[Date "2020.08.21"]
[Round "4"]
[White "Grigorev, Artur "]
[Black "Valero Martinez, Óscar"]
[Result "0-1"]
[WhiteElo "938"]
[BlackElo "1135"]
[TimeControl "180+2"]
[EndTime "11:06:32 PDT"]
[Termination "Victoria de Oscar12000 por jaque mate"]

1. e4 {[%clk 0:03:01.9]} 1... e5 {[%clk 0:03:00.9]} 2. Nf3 {[%clk 0:03:01.3]}
2... Nc6 {[%clk 0:03:02.8]} 3. Nc3 {[%clk 0:03:01]} 3... Nf6 {[%clk 0:03:04.3]}
4. Bc4 {[%clk 0:02:54.6]} 4... Bc5 {[%clk 0:03:06.2]} 5. d3 {[%clk 0:02:49.9]}
5... d6 {[%clk 0:03:08]} 6. Bg5 {[%clk 0:02:45.5]} 6... O-O {[%clk 0:03:01.6]}
7. Bxf6 {[%clk 0:02:40.8]} 7... Qxf6 {[%clk 0:02:59.2]} 8. Nd5 {[%clk
0:02:40.2]} 8... Qg6 {[%clk 0:02:56]} 9. O-O {[%clk 0:02:30.5]} 9... Bh3 {[%clk
0:02:51.1]} 10. Nh4 {[%clk 0:02:27.5]} 10... Qg5 {[%clk 0:02:35.6]} 11. Nxc7
{[%clk 0:02:20.3]} 11... Rac8 {[%clk 0:02:30.9]} 12. Nf3 {[%clk 0:02:04.2]}
12... Qxg2# {[%clk 0:02:27.1]} 0

[Event "Torneo Nuevo Centro. Jornada 10"]
[Site "Chess.com"]
[Date "2020.08.21"]
[Round "4"]
[White "Ursariu, Nikolas Victor"]
[Black "Valverde Alcaide, Miguel Alejandro"]
[Result "1-0"]
[WhiteElo "1093"]
[BlackElo "885"]
[TimeControl "180+2"]
[EndTime "11:08:23 PDT"]
[Termination "Victoria de NikolasVictor por abandono"]

1. e4 {[%clk 0:03:01.9]} 1... e5 {[%clk 0:03:00.6]} 2. Nf3 {[%clk 0:03:01.2]}
2... d6 {[%clk 0:02:54.5]} 3. Nc3 {[%clk 0:03:00.7]} 3... c6 {[%clk 0:02:52.5]}
4. Bc4 {[%clk 0:02:57]} 4... Nh6 {[%clk 0:02:47.1]} 5. d3 {[%clk 0:02:54.7]}
5... d5 {[%clk 0:02:47.2]} 6. exd5 {[%clk 0:02:49.1]} 6... cxd5 {[%clk
0:02:42.4]} 7. Bxd5 {[%clk 0:02:47.6]} 7... Bc5 {[%clk 0:02:30.6]} 8. O-O {[%clk
0:02:40.5]} 8... Qf6 {[%clk 0:02:21]} 9. Bg5 {[%clk 0:02:33.6]} 9... Qg6 {[%clk
0:02:08.3]} 10. Re1 {[%clk 0:02:28.4]} 10... f6 {[%clk 0:02:03.8]} 11. Be3
{[%clk 0:02:21.9]} 11... Nf5 {[%clk 0:01:55.2]} 12. Bxc5 {[%clk 0:02:13.7]}
12... a5 {[%clk 0:01:38.8]} 13. Nxe5 {[%clk 0:01:54.3]} 13... Rf8 {[%clk
0:01:27.8]} 14. Nxg6+ {[%clk 0:01:53.7]} 14... Kd8 {[%clk 0:01:17.5]} 15. Bb6+
{[%clk 0:01:51.9]} 15... Kd7 {[%clk 0:01:15.7]} 16. Nxf8+ {[%clk 0:01:42]} 1